Cogmind - Beta 13 @@@ ROGUE MODE // 2024.07.06 @ 17:45:48 Player: sinsee Result: Destroyed by G-47 Trooper with Particle Gun Performance ------------- Evolutions (2) 1000 Regions Visited (7) 1400 Robots Destroyed (30) 150 Value Destroyed (817) 817 Prototype IDs (2) 40 Alien Tech Used (0) 0 Bonus (0) 0 TOTAL SCORE: 3407 Bonus ------- None Cogmind --------- Core Integrity 0/550 Matter 263/300 Energy 100/100 System Corruption 0% Temperature Cool (9) Movement Core (100) Ox1 Location -8/Storage Parts ------- > --- POWER (1) -------- (None) > --- PROPULSION (4) --- (None) > --- UTILITY (4) ------ Small Storage Unit Advanced Targeting Computer > --- WEAPON (2) ------- (None) > --- INVENTORY (8) ---- High-capacity Matter Pod (200) Improved Terrain Scanner Hardened Light Armor Plating System Shield Recalibrator Peak State ------------ > --- POWER ------------ Light Ion Engine > --- PROPULSION ------- Aluminum Leg Aluminum Leg Carbon-fiber Leg > --- UTILITY ---------- Heat Sink Small Storage Unit Advanced Targeting Computer Core Shielding > --- WEAPON ----------- Heavy EM Pulse Gun Heavy Assault Rifle > --- INVENTORY -------- High-capacity Matter Pod Improved Terrain Scanner Medium Armor Plating Medium Armor Plating System Shield System Shield Recalibrator Light Assault Rifle [Rating: 17] Favorites ----------- Power Ion Engine Engine Ion Engine Propulsion Aluminum Leg Treads Light Treads Leg Aluminum Leg Utility Small Storage Unit Device Heat Sink Storage Small Storage Unit Processor Advanced Targeting Computer Protection Core Shielding Weapon Assault Rifle Energy Gun Heavy EM Pulse Gun Energy Cannon Particle Cannon Ballistic Gun Assault Rifle Launcher Grenade Launcher Build | -11 -10 -9 -9 -9 -8 -8 -8 ------- Run | Yrd Mat Mat Min Exi Min Mat Sto Slots Evolved 4 | . . 2 . . . 2 . Power . | . . . . . . . . Propulsion 2 | . . 1 . . . 1 . Utility 2 | . . 1 . . . 1 . Weapon . | . . . . . . . . Parts Attached 41 | 6 1 16 4 1 4 3 6 Power 6 | 1 . 2 1 1 1 . . Engine 6 | 1 . 2 1 1 1 . . Core . | . . . . . . . . Reactor . | . . . . . . . . Propulsion 7 | 2 . 2 . . 1 1 1 Treads 3 | 2 . . . . . . 1 Leg 4 | . . 2 . . 1 1 . Wheel . | . . . . . . . . Hover . | . . . . . . . . Flight . | . . . . . . . . Utility 15 | 1 1 6 2 . 1 2 2 Device 8 | . . 4 2 . 1 1 . Storage 1 | 1 . . . . . . . Processor 1 | . . . . . . 1 . Hackware . | . . . . . . . . Protection 5 | . 1 2 . . . . 2 Artifact . | . . . . . . . . Weapon 13 | 2 . 6 1 . 1 . 3 Energy Gun 2 | . . 1 . . . . 1 Energy Cannon 1 | . . 1 . . . . . Ballistic Gun 8 | 2 . 2 1 . 1 . 2 Ballistic Cannon . | . . . . . . . . Launcher 2 | . . 2 . . . . . Special Weapon . | . . . . . . . . Impact Weapon . | . . . . . . . . Slashing Weapon . | . . . . . . . . Piercing Weapon . | . . . . . . . . Special Melee Weapon . | . . . . . . . . Unidentified Prototypes . | . . . . . . . . Parts Lost 17 | . . 2 2 . . 1 12 Power 4 | . . 2 1 . . . 1 Propulsion 5 | . . . . . . 1 4 Utility 4 | . . . . . . . 4 Weapon 4 | . . . 1 . . . 3 Highest Loss Streak 8 | . . 1 2 . . 1 8 To Critical Strikes . | . . . . . . . . Average Slot Usage (%) 88 | . 97 87 82 87 99 88 63 Engine 10 | . 14 10 5 10 11 9 5 Treads 8 | . 28 13 . . . . . Leg 16 | . . 8 22 22 32 26 13 Device 7 | . . 6 11 11 11 9 5 Storage 11 | . 14 11 11 11 11 9 9 Processor 1 | . . . . . . 7 9 Protection 11 | . 11 15 11 11 11 9 8 Ballistic Gun 14 | . 28 5 9 11 20 18 8 Launcher 6 | . . 13 12 11 1 . . Naked Turns . | . . . . . . . . Heaviest Build 20 | 14 15 18 20 20 20 16 19 Greatest Support 40 | 40 40 40 20 20 37 37 35 Greatest Overweight (x) 6 | . . . . . . . 6 Average Overweight (x) . | . . . . . . . . Largest Inventory Capacity 8 | 8 8 8 8 8 8 8 8 Average Capacity 7 | 7 8 8 8 8 8 8 8 Most Carried 8 | 4 8 8 7 7 8 8 8 Average Carried 6 | 2 6 7 6 5 7 7 7 Final Capacity 8 | 8 8 8 8 8 8 8 8 Final Carried 8 | 4 8 7 6 6 8 8 5 Class Distribution -------------------- 96% | Mutant 3% | Scavenger-Mutant Dominant Class ---------------- Mutant | -10/Materials Mutant | -9/Materials Mutant | -9/Mines Mutant | -9/Exiles Mutant | -8/Mines Mutant | -8/Materials Mutant | -8/Storage Resources | -11 -10 -9 -9 -9 -8 -8 -8 ----------- Run | Yrd Mat Mat Min Exi Min Mat Sto Matter Collected 1142 | 249 150 427 59 63 58 43 93 Remotely . | . . . . . . . . Salvage Created 846 | . 209 200 76 . 45 43 273 Parts 57 | . 17 14 3 . 5 1 17 Haulers Intercepted . | . . . . . . . . Recyclers Shooed . | . . . . . . . . Parts Field Recycled . | . . . . . . . . Retrieved Matter . | . . . . . . . . Parts Self-Destructed . | . . . . . . . . Prevented . | . . . . . . . . Kills | -11 -10 -9 -9 -9 -8 -8 -8 ------- Run | Yrd Mat Mat Min Exi Min Mat Sto Combat Hostiles Destroyed 27 | . 9 6 3 . 3 1 5 Guns 19 | . 9 1 . . 3 1 5 Cannons 1 | . . 1 . . . . . AOE 7 | . . 4 3 . . . . Classes Destroyed 6 | . 2 3 . . . 1 . Worker 2 | . . 1 1 . . . . Mechanic 1 | . . 1 . . . . . Swarmer 10 | . 6 1 . . 3 . . Grunt 12 | . 3 4 3 . . . 2 Sentry 4 | . . 1 . . . . 3 Hunter 1 | . . . . . . 1 . Best Kill Streak 5 | . 5 3 4 . 3 1 2 Combat Bots Only 5 | . 5 2 3 . 3 1 2 Max Kills in Single Turn 2 | . 1 2 2 . 2 1 1 Gunslinging 1 | . . . . . 1 . . Exploded 2 | . . 2 2 . . . . Melee . | . . . . . . . . Uniques/NPCs Destroyed . | . . . . . . . . Combat | -11 -10 -9 -9 -9 -8 -8 -8 -------- Run | Yrd Mat Mat Min Exi Min Mat Sto Hostile Shots Fired 240 | . 40 37 12 . 6 25 120 Missed 78 | . 12 18 4 . 3 6 35 Damage Taken 2547 | . 300 337 241 . 24 256 1389 Core 637 | . 29 27 14 . 7 79 481 Absorbed by Shields . | . . . . . . . . Redirected to Shielding 51 | . 4 5 3 . 1 16 22 Core Remaining (%) 92 | 100 88 . . . 88 . . Volleys Fired 85 | . 24 10 7 . 3 11 30 Largest 2 | . 2 2 2 . 2 2 2 Hottest 133 | . 40 133 53 . 43 43 68 Shots Fired 148 | . 48 20 11 . 6 22 41 Gun 128 | . 48 7 4 . 6 22 41 Cannon 3 | . . 3 . . . . . Launcher 17 | . . 10 7 . . . . Special . | . . . . . . . . Kinetic 117 | . 48 4 4 . 6 22 33 Thermal 6 | . . 6 . . . . . Explosive 17 | . . 10 7 . . . . Electromagnetic 8 | . . . . . . . 8 Robot Hit Streak 12 | . 8 4 9 . 2 10 12 Robot Miss Streak 4 | . 3 4 . . 2 2 1 Penetration Max . | . . . . . . . . Secondary Targets 2 | . . 1 . . 1 . . Max Gunslinging Chain 1 | . . 1 . . 1 . . Shots Hit Robots 103 | . 31 11 8 . 3 18 32 Core Hits 54 | . 12 13 8 . 3 4 14 Critical Kills . | . . . . . . . . Critical Parts Destroyed . | . . . . . . . . Critical Strikes . | . . . . . . . . Melee Attacks . | . . . . . . . . Impact . | . . . . . . . . Slashing . | . . . . . . . . Piercing . | . . . . . . . . Sneak Attacks . | . . . . . . . . Combat Hostiles . | . . . . . . . . Follow-up Attacks . | . . . . . . . . Damage Inflicted 1846 | . 406 447 381 . 40 183 389 Guns 1121 | . 406 78 25 . 40 183 389 Cannons 41 | . . 41 . . . . . Explosions 684 | . . 328 356 . . . . Melee . | . . . . . . . . Ramming . | . . . . . . . . Kinetic 997 | . 406 44 25 . 40 183 299 Thermal 75 | . . 75 . . . . . Explosive 684 | . . 328 356 . . . . Electromagnetic 90 | . . . . . . . 90 Impact . | . . . . . . . . Slashing . | . . . . . . . . Piercing . | . . . . . . . . Highest Corruption . | . . . . . . . . Average Corruption . | . . . . . . . . Corruption Purged . | . . . . . . . . Corruption Blocked . | . . . . . . . . Overload Shots . | . . . . . . . . Overflow Damage . | . . . . . . . . Projectiles . | . . . . . . . . Explosions . | . . . . . . . . Melee . | . . . . . . . . Knockbacks . | . . . . . . . . Impact . | . . . . . . . . Kinetic . | . . . . . . . . Secondary . | . . . . . . . . Self-Inflicted Damage 214 | . . 71 143 . . . . Shots 9 | . . 4 5 . . . . Rammed . | . . . . . . . . Targets Rammed . | . . . . . . . . Kicked . | . . . . . . . . Crushed . | . . . . . . . . Highest Temperature 198 | . . 198 . . . . 38 Average Temperature 58 | . . 108 . . . . 14 Received Heat Transfer 1050 | . 96 33 57 . . 9 855 Siege Activations . | . . . . . . . . Robots Corrupted . | . . . . . . . . Combat Hostiles . | . . . . . . . . Parts Fried . | . . . . . . . . Impact Corruptions . | . . . . . . . . Robots Melted . | . . . . . . . . Combat Hostiles . | . . . . . . . . Parts Melted . | . . . . . . . . Heat Transferred 119 | . . 119 . . . . . Parts Sabotaged . | . . . . . . . . Parts Stolen . | . . . . . . . . Parts Stripped . | . . . . . . . . Power Chain Reactions . | . . . . . . . . Alert | -11 -10 -9 -9 -9 -8 -8 -8 ------- Run | Yrd Mat Mat Min Exi Min Mat Sto Peak Influence 203 | . 155 203 132 . 85 59 144 Initial 43 | . . 35 43 . . . 24 Average 61 | . 53 77 82 . 38 23 100 Maximum Alert Level 1 | . . 1 . . . . . Low Security (%) 99 | 100 100 96 100 . 100 100 100 Level 1 . | . . 3 . . . . . Level 2 . | . . . . . . . . Level 3 . | . . . . . . . . Level 4 . | . . . . . . . . Level 5 . | . . . . . . . . High Security . | . . . . . . . . Max Security . | . . . . . . . . Squads Dispatched 9 | . 1 6 . . . 2 . Investigation 4 | . . 2 . . . 2 . Extermination . | . . . . . . . . Reinforcement 5 | . 1 4 . . . . . Assault . | . . . . . . . . Garrison . | . . . . . . . . Intercept . | . . . . . . . . Searches Triggered . | . . . . . . . . Construction Impeded 1 | . . 1 . . . . . Haulers Reinforced . | . . . . . . . . Active Scanning Responses . | . . . . . . . . Cargo Convoy Interrupts . | . . . . . . . . Stealth | -11 -10 -9 -9 -9 -8 -8 -8 --------- Run | Yrd Mat Mat Min Exi Min Mat Sto Distress Signals 1 | . . 1 . . . . . Communications Jammed . | . . . . . . . . Distress Signals . | . . . . . . . . Times Spotted 50 | . 14 11 3 . 4 4 14 Peak Tracking Total 10 | . 3 4 3 . 3 3 10 Tactical Retreats 2 | . . . . . 1 . 1 Traps | -11 -10 -9 -9 -9 -8 -8 -8 ------- Run | Yrd Mat Mat Min Exi Min Mat Sto Traps Triggered 3 | . 1 1 . . . . 1 Indirectly . | . . . . . . . . Trap Hack Attempts . | . . . . . . . . Triggered . | . . . . . . . . Disarmed . | . . . . . . . . Reprogrammed . | . . . . . . . . Reused . | . . . . . . . . Traps Extracted . | . . . . . . . . Installed . | . . . . . . . . Triggered . | . . . . . . . . Machines | -11 -10 -9 -9 -9 -8 -8 -8 ---------- Run | Yrd Mat Mat Min Exi Min Mat Sto Machines Disabled 2 | . . 2 . . . . . Max in Single Turn 1 | . . 1 . . . . . Machines Repaired . | . . . . . . . . Machines Dismantled . | . . . . . . . . Machines Sabotaged . | . . . . . . . . Overloaded Fab Kills . | . . . . . . . . Hacking | -11 -10 -9 -9 -9 -8 -8 -8 --------- Run | Yrd Mat Mat Min Exi Min Mat Sto Machines Accessed 8 | . . 3 . 1 . 2 2 Terminals 7 | . . 3 . . . 2 2 Fabricators . | . . . . . . . . Repair Stations . | . . . . . . . . Recycling Units . | . . . . . . . . Scanalyzers . | . . . . . . . . Garrison Access . | . . . . . . . . Total Hacks 45 | . . 12 . 23 . 5 5 Successful 38 | . . 8 . 23 . 3 4 Failed 7 | . . 4 . . . 2 1 Catastrophic 2 | . . 1 . . . 1 . Database Lockouts . | . . . . . . . . Manual 1 | . . . . 1 . . . Terminals 22 | . . 12 . . . 5 5 Fabricators . | . . . . . . . . Repair Stations . | . . . . . . . . Recycling Units . | . . . . . . . . Scanalyzers . | . . . . . . . . Garrison Access . | . . . . . . . . Terminal Hacks 38 | . . 8 . 23 . 3 4 Record 35 | . . 8 . 23 . 1 3 Prototype ID Bank 1 | . . . . . . 1 . Emergency Access Points 1 | . . . . . . 1 . Zone Layout 1 | . . . . . . . 1 Fabricator Hacks . | . . . . . . . . Repair Station Hacks . | . . . . . . . . Recycling Unit Hacks . | . . . . . . . . Scanalyzer . | . . . . . . . . Garrison Access Hacks . | . . . . . . . . Unauthorized Hacks . | . . . . . . . . Terminals . | . . . . . . . . Fabricators . | . . . . . . . . Repair Stations . | . . . . . . . . Recycling Units . | . . . . . . . . Scanalyzers . | . . . . . . . . Garrison Access . | . . . . . . . . Data Cores Recovered . | . . . . . . . . Used . | . . . . . . . . Hacking Detections 5 | . . 2 . . . 2 1 Full Trace Events 4 | . . 2 . . . 2 . Feedback Events . | . . . . . . . . Feedback Blocked . | . . . . . . . . Robot Schematics Acquired . | . . . . . . . . Robots Built . | . . . . . . . . Authchips . | . . . . . . . . Time . | . . . . . . . . Total Robot Build Rating . | . . . . . . . . Part Schematics Acquired . | . . . . . . . . Parts Built . | . . . . . . . . Authchips . | . . . . . . . . Time . | . . . . . . . . Total Part Build Rating . | . . . . . . . . Parts Repaired . | . . . . . . . . Time . | . . . . . . . . Parts Recycled . | . . . . . . . . Recycled Matter . | . . . . . . . . Retrieved Matter . | . . . . . . . . Retrieved Components . | . . . . . . . . Parts Scanalyzed . | . . . . . . . . Part Schematics Acquired . | . . . . . . . . Parts Damaged . | . . . . . . . . Bothacking | -11 -10 -9 -9 -9 -8 -8 -8 ------------ Run | Yrd Mat Mat Min Exi Min Mat Sto Used RIF Installer . | . . . . . . . . Robots Hacked . | . . . . . . . . Non-combat . | . . . . . . . . Combat . | . . . . . . . . Robot Hacks Applied . | . . . . . . . . Relay Couplers Released . | . . . . . . . . Fabnet Peak Effective % . | . . . . . . . . Robots Rewired . | . . . . . . . . Allies Hacked . | . . . . . . . . Hacks Repelled . | . . . . . . . . Allies | -11 -10 -9 -9 -9 -8 -8 -8 -------- Run | Yrd Mat Mat Min Exi Min Mat Sto Total Allies . | . . . . . . . . Largest Group . | . . . . . . . . Highest-Rated Group . | . . . . . . . . Highest-Rated Ally . | . . . . . . . . Total Orders . | . . . . . . . . Ally Attacks . | . . . . . . . . Total Damage . | . . . . . . . . Kills . | . . . . . . . . Allies Corrupted . | . . . . . . . . Allies Melted . | . . . . . . . . Intel | -11 -10 -9 -9 -9 -8 -8 -8 ------- Run | Yrd Mat Mat Min Exi Min Mat Sto Robot Analysis Total . | . . . . . . . . Derelict Logs Recovered 1 | . . . 1 . . . . Drone Launches . | . . . . . . . . Drone Recoveries . | . . . . . . . . Exploration | -11 -10 -9 -9 -9 -8 -8 -8 ------------- Run | Yrd Mat Mat Min Exi Min Mat Sto Turns Passed 3700 | 166 681 746 556 414 659 153 325 Spaces Moved 2313 | 101 324 446 352 334 521 89 146 Core 28 | 7 . . . . . . 21 Treads 660 | 94 324 235 . . . . 7 Legs 1625 | . . 211 352 334 521 89 118 Wheels . | . . . . . . . . Hover . | . . . . . . . . Flight . | . . . . . . . . Fastest Speed 50 | 50 160 120 120 120 120 120 100 Average Speed 131 | 152 160 141 120 120 122 121 121 Slowest Speed 350 | 160 160 160 120 120 123 123 350 Overloaded Moves . | . . . . . . . . Propulsion Burnouts . | . . . . . . . . Robots Hopped . | . . . . . . . . Cave-ins Triggered . | . . . . . . . . Exploration Rate (%) 34 | 6 38 33 43 57 66 5 24 Regions Visited 7 Branch Regions 4 Pre-discovered Areas 2 | . . . 1 1 . . . Known Exits Taken . | . . . . . . . . Unknown Exits Taken 7 | 1 1 1 1 1 1 1 . Scrap Searched 3 | . . . 1 . 2 . . Spaces Dug . | . . . . . . . . Terrain Destroyed 86 | . . 46 40 . . . . Melee . | . . . . . . . . Projectile . | . . . . . . . . AOE 86 | . . 46 40 . . . . Terrain Rammed . | . . . . . . . . Walls Destroyed . | . . . . . . . . Machines Disabled . | . . . . . . . . Actions | -11 -10 -9 -9 -9 -8 -8 -8 --------- Run | Yrd Mat Mat Min Exi Min Mat Sto Total 2816 | 110 438 547 473 348 532 111 257 Wait 329 | . 86 53 111 . . 8 71 Move 2306 | 100 323 445 351 333 520 88 146 Hop . | . . . . . . . . Pick Up 22 | 4 4 8 . 2 3 . 1 Fast Attach 22 | 6 1 6 1 1 2 2 3 Attach 15 | . . 10 1 . . 1 3 Detach 4 | . . 3 . . . 1 . Swap 4 | . . . 2 . 2 . . Drop 20 | . . 12 . 3 2 . 3 Fire 85 | . 24 10 7 . 3 11 30 Melee . | . . . . . . . . Ram . | . . . . . . . . Kick . | . . . . . . . . Crush . | . . . . . . . . Escape Stasis . | . . . . . . . . Rewire 9 | . . . . 9 . . . Trap . | . . . . . . . . Miscellaneous . | . . . . . . . . Route ------- -11/Scrapyard -10/Materials (discovered 2 exits: *Mat / [*Min]) -9/Materials -9/Mines -9/Exiles -8/Mines -8/Materials -8/Storage History --------- Turn | Location | Event 21 | -11/Scrapyard | Discovered new exit (range 16) 167 | -11/Scrapyard | Entered Materials 305 | -10/Materials | Build established: Mutant 479 | -10/Materials | Discovered new exit (range 13) 829 | -10/Materials | Discovered new exit (range 12) 848 | -10/Materials | Entered another Materials area 848 | -9/Materials | Evolved 2 slots: Propulsion x1, Utility x1 1577 | -9/Materials | Discovered new exit (range 10) 1594 | -9/Materials | Entered Mines 1628 | -9/Mines | Learned location of Storage (-8) 1760 | -9/Mines | Learned Materials trap positions 2142 | -9/Mines | Deemed a non-threat by the Exiles lab entrance 2143 | -9/Mines | Discovered new exit (range 5) 2150 | -9/Mines | Entered Exiles 2215 | -9/Exiles | Met 8R-AWN 2250 | -9/Exiles | Met EX-HEX 2420 | -9/Exiles | Met EX-DEC 2468 | -9/Exiles | Learned location of Zion (-7) 2542 | -9/Exiles | Discovered new exit (range 14) 2564 | -9/Exiles | Entered Mines 3203 | -8/Mines | Discovered new exit (range 15) 3223 | -8/Mines | Entered Materials 3223 | -8/Materials | Evolved 2 slots: Propulsion x1, Utility x1 3224 | -8/Materials | Loaded intel: 10 trap records 3224 | -8/Materials | Discovered new exit (range 7) 3376 | -8/Materials | Entered Storage 3598 | -8/Storage | Core integrity fell below 50% 3622 | -8/Storage | Lost 8 parts (1p3n2u2w) 3676 | -8/Storage | Core integrity fell below 20% 3701 | -8/Storage | Destroyed by G-47 Trooper with Particle Gun Last Messages --------------- 03573_ K-01 Serf collects debris. 03575_ Core Shielding destroyed. 03575_ Acquired Lgt. Treads. 03576_ K-01 Serf collects debris. 03580_ C-30 ARC bursts open, deploying its payload. 03580_ G-47 Trooper unfolds itself. 03582_ K-01 Serf collects debris. 03584_ Critical hit (Burn: +37). 03587_ K-01 Serf collects debris. 03591_ Lgt. Treads destroyed. 03596_ K-01 Serf collects debris. 03629_ G-47 Trooper destroyed. 03637_ Lgt. Assault Rifle destroyed. 03637_ Critical hit (Burn: +37). 03661_ Transport Mainframe disabled. 03666_ K-01 Serf collects debris. 03666_ R-06 Scavenger collects Particle Gun. 03675_ Critical hit (Burn: +37). 03685_ Med. Armor Plating destroyed. 03699_ R-06 Scavenger collects Lgt. Nuclear Core. Map ----- +----------------------------------------------------+ | ??????# ####?????? | | ??????# ^ #????????? | | ??????###################+#####?????? | | ???????# [ [ #?# """ #?????? | | ???????# [[ T #### "Y" T?????? | | ???????# [[ =#?# """ #?????? | | ######?# !##?# """ #?????? | | # #######+#####??# """ #?????? | | # + #??????# #?????? | | # # #??????# #?????? | | # # #??????# #?????? | | # + #???##############?????? | | # #%##### #???# ##?????? | | # #!#???# #???# ##?????? | | # # #???# #???# ##?????? | | # # #???# #???#[! ##?????? | | ######+##### #####% ##?????? | | ??# # +! ##?????? | | ??# " """ # # ##?????? | | ??# T """ # ######/#######?????? | | ??# " """ # % ??????? | | ??# """ + ??????? | | ??# """ # gg ??????? | | ??# ! ###g#k#########+####?????? | | ??# ! # ggb #??????????????? | | ??# !! #@r""Y """#??????????????? | | ??##### ####"""" R"#??????????????? | | ??????###??#"""" """#??????????????? | | ???????????#"""" #??????????????? | | ???????????# #??????????????? | | ???????????# ! #??????????????? | | ???????????# ! #??????????????? | | ???????????######### #??????????????? | | ????????????????????##??????????????? | | ????????????????????????????????????? | | ????????????????????????????????????? | | ????????????????????????????????????? | | ????????????????????????????????????? | | ????????????????????????????????????? | | ????????????????????????????????????? | | ????????????????????????????????????? | | ????????????????????????????????????? | | ????????????????????????????????????? | | ????????????????????????????????????? | | ????????????????????????????????????? | | ????????????????????????????????????? | | ????????????????????????????????????? | | ????????????????????????????????????? | | ????????????????????????????????????? | | ????????????????????????????????????? | +----------------------------------------------------+ Best States ------------- Heat Dissipation 41 Energy Generation 12 Energy Capacity 265 Matter Stores 300 Matter Capacity 300 Sight Range 16 Terrain Scan Range 16 Terrain Scan Density 10 Armor Coverage 450 Core Shielding 20 Evasion (%) 55 Targeting Accuracy 8 Recoil Reduction 2 Item Schematics ----------------- None Robot Schematics ------------------ None Fabricated ------------ Nothing Alien Tech Used ----------------- None Achievements -------------- None Challenges ------------ None Game ------ Seed ImprinterAlertMagmablaster Manual? 0 Play Time 00:49:08 Cumulative 5.5 hours Start 2024.07.06 @ 16:54:47 End 2024.07.06 @ 17:45:48 Sessions 1 Manual Loads 0 Difficulty Rogue Special Mode None Game No. 8 Rogue 5 Adventurer 3 Explorer 0 Win Type - Total 0 Types 0/0/0/0/0/0/0/0/0 Lore% 8 Gallery% 8 Achievement% 7 Wizard Run 0 Options --------- Layout 0 ASCII 0 Keyboard 0 Movement Arrows Keybinds 0 Fullscreen 1 Font 18/SmallcapsGlow Map View 38x25 Zoom Use 100% Tactical HUD 1 Map Filters NONE Filters NONE Steam 1 RUN: b984e79b-cf23-4fb7-a59b-70cf45811d94